Cogmind - Beta 16 @@@ ROGUE MODE // 2025.11.13 @ 21:47:02 Player: ChromeKnight Result: Destroyed by Autobeam Turret with Autobeam Performance ------------- Evolutions (0) 0 Regions Visited (2) 400 Robots Destroyed (46) 230 Value Destroyed (1331) 1331 Prototype IDs (12) 240 Alien Tech Used (0) 0 Bonus (-52) -52 TOTAL SCORE: 2149 Bonus ------- Friendly Fire -52 Cogmind --------- Core Integrity 0/250 Matter 259/300 Energy 100/100 System Corruption 2% Temperature Cool (6) Movement Treading (240) Ox1 Location -10/Subcaves Parts ------- > --- POWER (1) -------- (None) > --- PROPULSION (2) --- Light Treads > --- UTILITY (2) ------ Large Storage Unit Makeshift Kinetic Plating > --- WEAPON (2) ------- Rocket Launcher > --- INVENTORY (15) --- Small Storage Unit Hardened Light Armor Plating Makeshift Kinetic Plating Scrap Shield Makeshift Hacking Suite Makeshift System Shield Makeshift System Restoration Module Riot Gun Light EM Pulse Cannon Powered Cannon Subdweller Shrapnel Launcher Subdweller Shrapnel Launcher Multitool Peak State ------------ > --- POWER ------------ (None) > --- PROPULSION ------- Light Treads Subdweller Monowheel > --- UTILITY ---------- Large Storage Unit Makeshift Kinetic Plating > --- WEAPON ----------- Rocket Launcher Rocket Launcher > --- INVENTORY -------- Small Storage Unit Hardened Light Armor Plating Makeshift Kinetic Plating Scrap Shield Makeshift Hacking Suite Makeshift System Shield Makeshift System Restoration Module Riot Gun Light EM Pulse Cannon Powered Cannon Subdweller Shrapnel Launcher Subdweller Shrapnel Launcher Multitool [Rating: 16] Favorites ----------- Power Light Ion Engine Engine Light Ion Engine Propulsion Light Treads Treads Light Treads Wheel Subdweller Monowheel Utility Large Storage Unit Storage Large Storage Unit Protection Hardened Light Armor Plating Weapon Rocket Launcher Energy Gun EM Pulse Gun Energy Cannon Light EM Pulse Cannon Ballistic Cannon Battle Cannon Launcher Rocket Launcher Special Weapon Multitool Build | -11 -10 -10 ------- Run | Yrd Mat Sub Slots Evolved . | . . . Power . | . . . Propulsion . | . . . Utility . | . . . Weapon . | . . . Parts Attached 24 | 6 6 12 Power 2 | 1 . 1 Engine 2 | 1 . 1 Core . | . . . Reactor . | . . . Propulsion 4 | 2 1 1 Treads 3 | 2 1 . Leg . | . . . Wheel 1 | . . 1 Hover . | . . . Flight . | . . . Utility 7 | 1 3 3 Device . | . . . Storage 3 | 1 2 . Processor . | . . . Hackware . | . . . Protection 4 | . 1 3 Artifact . | . . . Weapon 11 | 2 2 7 Energy Gun 2 | 2 . . Energy Cannon 3 | . 1 2 Ballistic Gun . | . . . Ballistic Cannon 1 | . . 1 Launcher 4 | . 1 3 Special Weapon 1 | . . 1 Impact Weapon . | . . . Slashing Weapon . | . . . Piercing Weapon . | . . . Special Melee Weapon . | . . . Unidentified Prototypes . | . . . Parts Lost 11 | . . 11 Power 2 | . . 2 Propulsion 3 | . . 3 Utility 2 | . . 2 Weapon 4 | . . 4 Highest Loss Streak 2 | . . 2 To Critical Strikes . | . . . Average Backups 12 | . 11 13 Power . | . . . Propulsion . | . . . Utility 7 | . 5 7 Weapon 5 | . 5 4 Tool/Special . | . . . Unused Backups 16 | . 2 14 Power . | . . . Propulsion . | . . . Utility 8 | . . 8 Weapon 8 | . 2 6 Tool/Special . | . . . Average Slot Usage (%) 92 | . 84 94 Engine 11 | . 14 10 Treads 21 | . 28 19 Wheel 5 | . . 7 Storage 14 | . 14 14 Protection 13 | . 10 13 Energy Gun 1 | . 6 . Energy Cannon 7 | . 3 7 Launcher 17 | . 6 19 Peak Build Rating 16 | 6 10 16 Average Rating 12 | 4 8 13 On Entrance 5 | . 6 10 Avg Prop Armor Cover (%) 3 | . . 3 Naked Turns . | . . . Heaviest Build 54 | 14 54 38 Greatest Support 40 | 40 40 40 Greatest Overweight (x) 1 | . 1 1 Average Overweight (x) . | . . . Largest Inventory Capacity 20 | 8 20 15 Average Capacity 15 | 6 17 15 Most Carried 15 | . 15 15 Average Carried 13 | . 11 14 Final Capacity 15 | 8 15 15 Final Carried 15 | . 15 15 Class Distribution -------------------- 100% | Mutant Dominant Class ---------------- Mutant | -10/Materials Mutant | -10/Subcaves Resources | -11 -10 -10 ----------- Run | Yrd Mat Sub Matter Collected 1458 | 206 244 1008 Remotely . | . . . Salvage Created 1578 | . 648 930 Parts 93 | . 36 57 Haulers Intercepted . | . . . Recyclers Shooed 1 | . 1 . Parts Field Recycled . | . . . Retrieved Matter . | . . . Parts Self-Destructed 15 | . . 15 Prevented 6 | . . 6 Parts Restored . | . . . Kills | -11 -10 -10 ------- Run | Yrd Mat Sub Combat Hostiles Destroyed 38 | . 13 25 Guns 2 | . 2 . Cannons 9 | . 5 4 AOE 26 | . 6 20 Classes Destroyed 11 | . 7 4 Worker 2 | . 2 . Tunneler 1 | . 1 . Recycler 3 | . 3 . Operator 1 | . 1 . Watcher 1 | . 1 . Swarmer 8 | . 6 2 Grunt 12 | . 7 5 Sentry 1 | . . 1 Artisan 2 | . . 2 Subdweller 17 | . . 17 Scientist 1 | . . 1 Best Kill Streak 11 | . 11 4 Combat Bots Only 5 | . 5 4 Max Kills in Single Turn 3 | . 3 2 Gunslinging . | . . . Exploded 2 | . 2 2 Melee . | . . . Uniques/NPCs Destroyed . | . . . Combat | -11 -10 -10 -------- Run | Yrd Mat Sub Hostile Shots Fired 154 | . 78 76 Missed 47 | . 21 26 Hits 107 | . 57 50 Projectile 107 | . 57 50 AOE 3 | . . 3 Critical Strikes 2 | . . 2 Damage Taken 1701 | . 553 1148 Core 253 | . 93 160 Absorbed by Shields . | . . . Ignored by Resistances 18 | . . 18 Core Remaining (%) 100 | 100 . . Volleys Fired 121 | . 39 82 Largest 2 | . 2 2 Hottest 90 | . 90 66 Shots Fired 146 | . 48 98 Gun 16 | . 16 . Cannon 53 | . 24 29 Launcher 75 | . 8 67 Special 2 | . . 2 Kinetic 1 | . . 1 Thermal 10 | . 8 2 Explosive 75 | . 8 67 Electromagnetic 60 | . 32 28 Robot Hit Streak 20 | . 5 20 Robot Miss Streak 5 | . 5 5 Penetration Max . | . . . Secondary Targets . | . . . Shots Hit Robots 69 | . 20 49 Core Hits 72 | . 24 48 Critical Kills . | . . . Critical Parts Destroyed . | . . . Critical Strikes . | . . . Melee Attacks . | . . . Impact . | . . . Slashing . | . . . Piercing . | . . . Sneak Attacks . | . . . Combat Hostiles . | . . . Follow-up Attacks . | . . . Damage Inflicted 3846 | . 984 2862 Guns 95 | . 95 . Cannons 758 | . 291 467 Explosions 2984 | . 589 2395 Melee . | . . . Ramming 9 | . 9 . Kinetic . | . . . Thermal 170 | . 37 133 Explosive 2851 | . 589 2262 Electromagnetic 816 | . 349 467 Impact . | . . . Slashing . | . . . Piercing . | . . . Highest Corruption 2 | . 2 2 Average Corruption 2 | . 2 2 Corruption Purged . | . . . Corruption Blocked . | . . . Effects 82 | . 11 71 Message Errors 24 | . 2 22 Matter Fused 20 | . 2 18 Heat Flow Errors 9 | . 3 6 Energy Discharges 8 | . . 8 Parts Rejected 1 | . . 1 Parts Fused 1 | . . 1 Data Loss (minor) 11 | . 2 9 Data Loss (major) 4 | . 1 3 Misfires 2 | . 1 1 Alerts 2 | . . 2 Overload Shots . | . . . Overflow Damage 55 | . 28 27 Projectiles 28 | . 28 . Explosions 27 | . . 27 Melee . | . . . Knockbacks . | . . . Impact . | . . . Kinetic . | . . . Secondary . | . . . Self-Inflicted Damage 156 | . 52 104 Shots 9 | . 2 7 Rammed 5 | . 5 . Targets Rammed 5 | . 5 . Kicked . | . . . Crushed . | . . . Highest Temperature 453 | . 453 247 Average Temperature 138 | . 147 93 Received Heat Transfer 264 | . 48 216 Effects 5 | . 4 1 Shutdowns 2 | . 2 . Energy Bleed 1 | . . 1 Matter Decay 1 | . 1 . Damage (minor) 1 | . 1 . Siege Activations . | . . . Martial Activations . | . . . Shielding Activations . | . . . Robots Disrupted . | . . . Combat Hostiles . | . . . Robots Corrupted 1 | . . 1 Combat Hostiles 1 | . . 1 Parts Fried 3 | . 1 2 Impact Corruptions . | . . . Robots Melted . | . . . Combat Hostiles . | . . . Parts Melted . | . . . Heat Transferred 261 | . 111 150 Parts Sabotaged . | . . . Parts Stolen . | . . . Parts Stripped . | . . . Power Chain Reactions 2 | . . 2 Alert | -11 -10 -10 ------- Run | Yrd Mat Sub Maximum Alert Level 1 | . 1 . Low Security (%) 75 | 100 74 . Level 1 24 | . 25 . Level 2 . | . . . Level 3 . | . . . Level 4 . | . . . Level 5 . | . . . High Security . | . . . Max Security . | . . . Peak Influence 292 | . 292 . Initial . | . . . Average 103 | . 107 . Influence Increases 635 | . 440 195 Destroy 0b10 Robot/C 420 | . 260 160 Destroy 0b10 Robot/NC 40 | . 40 . Destroy Leader 62 | . 42 20 Successful Hack 17 | . 17 . Disable Machine 30 | . 30 . Destroy Structure 36 | . 36 . Lose Combat Pursuer 30 | . 15 15 Influence Decreases 590 | . 312 278 Entered New Map 62 | . . 62 Time Decay 498 | . 312 186 Lost Part 30 | . . 30 Squads Dispatched 1 | . 1 . Investigation 1 | . 1 . Extermination . | . . . Reinforcement . | . . . Assault . | . . . Garrison . | . . . Intercept . | . . . Searches Triggered . | . . . Construction Impeded . | . . . Haulers Reinforced . | . . . Active Scanning Responses . | . . . Cargo Convoy Interrupts . | . . . Stealth | -11 -10 -10 --------- Run | Yrd Mat Sub Distress Signals 1 | . 1 . Communications Jammed . | . . . Distress Signals . | . . . Times Spotted 50 | . 20 30 Peak Tracking Total 5 | . 5 4 Tactical Retreats 3 | . 1 2 Traps | -11 -10 -10 ------- Run | Yrd Mat Sub Traps Triggered 3 | . 1 2 Indirectly . | . . . Trap Hack Attempts . | . . . Triggered . | . . . Disarmed . | . . . Reprogrammed . | . . . Reused . | . . . Traps Extracted . | . . . Installed . | . . . Triggered . | . . . Machines | -11 -10 -10 ---------- Run | Yrd Mat Sub Machines Disabled 6 | . 2 4 Max in Single Turn 3 | . 1 3 Machines Repaired . | . . . Machines Dismantled . | . . . Machines Sabotaged . | . . . Overloaded Fab Kills . | . . . Hacking | -11 -10 -10 --------- Run | Yrd Mat Sub Machines Accessed 8 | . 5 3 Terminals 5 | . 5 . Fabricators . | . . . Repair Stations . | . . . Recycling Units . | . . . Scanalyzers . | . . . Garrison Access . | . . . Total Hacks 14 | . 8 6 Successful 12 | . 6 6 Failed 2 | . 2 . Catastrophic . | . . . Database Lockouts . | . . . Manual 6 | . 6 . Terminals 8 | . 8 . Fabricators . | . . . Repair Stations . | . . . Recycling Units . | . . . Scanalyzers . | . . . Garrison Access . | . . . Terminal Hacks 7 | . 1 6 Record 4 | . . 4 Open Door 1 | . . 1 Zone Layout 1 | . 1 . Proto ID Catalog 1 | . . 1 Fabricator Hacks . | . . . Repair Station Hacks . | . . . Recycling Unit Hacks . | . . . Scanalyzer . | . . . Garrison Access Hacks . | . . . Unauthorized Hacks 5 | . 5 . Terminals 5 | . 5 . Skim 5 | . 5 . Fabricators . | . . . Repair Stations . | . . . Recycling Units . | . . . Scanalyzers . | . . . Garrison Access . | . . . Data Cores Recovered 1 | . 1 . Used . | . . . Hacking Detections 1 | . 1 . Full Trace Events . | . . . Feedback Events . | . . . Feedback Blocked . | . . . Robot Schematics Acquired . | . . . Robots Built . | . . . Authchips . | . . . Time . | . . . Total Robot Build Rating . | . . . Part Schematics Acquired . | . . . Parts Built . | . . . Authchips . | . . . Time . | . . . Total Part Build Rating . | . . . Part Studies Acquired . | . . . Parts Repaired . | . . . Time . | . . . Parts Recycled . | . . . Recycled Matter . | . . . Retrieved Matter . | . . . Retrieved Components . | . . . Parts Scanalyzed . | . . . Part Schematics Acquired . | . . . Parts Damaged . | . . . Bothacking | -11 -10 -10 ------------ Run | Yrd Mat Sub Used RIF Installer . | . . . Robots Hacked . | . . . Non-combat . | . . . Combat . | . . . Robot Hacks Applied . | . . . Relay Couplers Released . | . . . Fabnet Peak Effective % . | . . . Robots Rewired . | . . . Allies Hacked . | . . . Hacks Repelled . | . . . Allies | -11 -10 -10 -------- Run | Yrd Mat Sub Total Allies . | . . . Largest Group . | . . . Highest-Rated Group . | . . . Highest-Rated Ally . | . . . Total Orders . | . . . Ally Attacks . | . . . Total Damage . | . . . Kills . | . . . Allies Corrupted . | . . . Allies Melted . | . . . Intel | -11 -10 -10 ------- Run | Yrd Mat Sub Active Infowar (turns) . | . . . Robot Analysis Total . | . . . Derelict Logs Recovered 1 | . . 1 Drone Launches . | . . . Drone Recoveries . | . . . Exploration | -11 -10 -10 ------------- Run | Yrd Mat Sub Turns Passed 6231 | 56 1327 4848 Spaces Moved 2697 | 32 386 2279 Core 3 | 3 . . Treads 2667 | 29 386 2252 Legs . | . . . Wheels 27 | . . 27 Hover . | . . . Flight . | . . . Fastest Speed 50 | 50 160 120 Average Speed 202 | 149 213 201 Slowest Speed 240 | 160 240 240 Overloaded Moves . | . . . Propulsion Burnouts . | . . . Robots Hopped . | . . . Potential Cave-ins . | . . . Cave-ins Triggered . | . . . Exploration Rate (%) 49 | 3 54 92 Regions Visited 2 Branch Regions 1 Pre-discovered Areas 2 | . 1 1 Known Exits Taken . | . . . Unknown Exits Taken 2 | 1 1 . Scrap Searched 16 | . . 16 Spaces Dug . | . . . Terrain Destroyed 453 | . 39 414 Melee . | . . . Projectile . | . . . AOE 453 | . 39 414 Terrain Rammed . | . . . Walls Destroyed . | . . . Machines Disabled . | . . . Actions | -11 -10 -10 --------- Run | Yrd Mat Sub Total 3318 | 37 835 2446 Wait 424 | . 376 48 Move 2695 | 31 385 2279 Hop . | . . . Pick Up 29 | . 16 13 Fast Attach 14 | 6 4 4 Attach 9 | . 1 8 Detach 1 | . 1 . Swap 6 | . 2 4 Drop 14 | . 6 8 Fire 121 | . 39 82 Melee . | . . . Ram . | . . . Kick . | . . . Crush 5 | . 5 . Escape Stasis . | . . . Rewire . | . . . Trap . | . . . Miscellaneous . | . . . Route ------- -11/Scrapyard -10/Materials (discovered 5 exits: *Mat x3 / Min / *Sub) -10/Subcaves (discovered 3 exits: *Mat x2 / Rec) History --------- Turn | Location | Event 6 | -11/Scrapyard | Discovered new exit (range 15) 57 | -11/Scrapyard | Entered Materials 304 | -10/Materials | Build established: Mutant 489 | -10/Materials | Discovered new exit (range 14) 539 | -10/Materials | Discovered new exit (range 13) 845 | -10/Materials | Discovered new exit (range 15) 975 | -10/Materials | Identified exit to Materials 1122 | -10/Materials | Identified exit to Mines 1230 | -10/Materials | Learned Storage trap positions 1353 | -10/Materials | Learned Storage trap positions 1384 | -10/Materials | Entered Subcaves 1385 | -10/Subcaves | Approached by a straggling Scientist 1385 | -10/Subcaves | Identified exit to Materials 1631 | -10/Subcaves | Shifting Twisted Machinery released Sub. Laser 1760 | -10/Subcaves | Shifting Twisted Machinery released Mak. Hacking Suite 1777 | -10/Subcaves | Shifting Twisted Machinery released Sub. Power Source 1907 | -10/Subcaves | Discovered exit to Materials (range 6) 1996 | -10/Subcaves | Visited Clippyterm 2001 | -10/Subcaves | Identified exit to Recycling 2001 | -10/Subcaves | Learned Factory trap positions 2049 | -10/Subcaves | Ambushed by Subdwellers from Twisted Machinery 2376 | -10/Subcaves | Core integrity fell below 50% 2525 | -10/Subcaves | A swath of the cavern ceiling suddenly collapsed 2559 | -10/Subcaves | A swath of the cavern ceiling suddenly collapsed 2798 | -10/Subcaves | Ambushed by angry Subdweller bent on revenge 3304 | -10/Subcaves | Disturbed a concealed Subdweller 4142 | -10/Subcaves | Visited 4L-MR0's lab 5303 | -10/Subcaves | Found Powered Cannon 6130 | -10/Subcaves | Learned location of Storage (-8) 6182 | -10/Subcaves | Core integrity fell below 20% 6232 | -10/Subcaves | Destroyed by Autobeam Turret with Autobeam Last Messages --------------- rejected. 06072_ Acquired Rocket Launcher. 06083_ AC-ZXO(R) destroyed. 06083_ AG-GAV(R) destroyed. 06094_ The unstable cave ceiling collapses. 06094_ Acquired 38 matter. 06096_ Acquired 14 matter. 06130_ Acquired derelict log, extracted data. World map updated: -8/Storage. 06156_ System corrupted: Heat flow error (+288). 06176_ System corrupted: IFF burst signal emitted. 06182_ S-10 Pest destroyed. 06189_ The unstable cave ceiling collapses. 06202_ Acquired 9 matter. 06214_ The unstable cave ceiling collapses. 06226_ S-10 Pest destroyed. 06226_ Destroyed Flight Unit. 06227_ Rocket Launcher destroyed. 06228_ S-10 Pest destroyed. Map ----- +----------------------------------------------------+ | ??????# ## # # # " " | | ??????## # # #""" "" ###### | | ?????## """ " ##????## | | ###### # *" " #??????# | | # ### # # #### #####??# | | #?# # ## "#??# ##?# | | ## # ##?# ####### """### #?## | | ## #### ##??# ##?????# "###" ##??? | | ### #####???# ??????### ####?#" #???? | | ### ##?????# ???????###????#" #???? | | ##?## ##????## #??????????????#### #???? | | #??#### #?????####?????????????????##### #??? | | ##???### #??????????????????????????????# #?? | | ????## ##????????????? ???####? ?????## #?? | | ????# #?????????????? #?? # ?????# #?? | | ????## ###?????????????? ## # ?????# ##?? | | ?????###????????????????? t????#####??? | | ????????????????????????? ??>????????? | | ??????????????????##????? t ??????????? | | ?????????????????## ????# * ???????????? | | ?????????????????# ????# ????????????? | | ?????????????????# ???## " ????????????? | | ??????????????????# #?## #?#######??????? | | ??????????????????# ## #??## ##?????? | | ?????????#####????# ####?# ####??? | | ???????### #????# @ ### ##?# #??? | | ???????# ##???# ### #??? | | ?????### ##??# #??# | | ?????# & #??# # ##?? | | ?????# #??## ## # #??? | | ?????? * # ?????# # # ### ## #???? | | ??????# # ##?????# ## # #?### # ####? | | ???#### #& #?????# # ##??## ## # #? | | #??# #?????# & #???##### #?? | | ##?# ####??# && #???????### #?? | | #?# #### #?????????### #?? | | ### # ###????????## ### | | " # #????????# # | | ## ## # !# ### #????????# | | ## ###### ##### #????????### # | | ### ##????## ## # #??????????#### | | #?# #??????# % ##????????####?? | | #######%#####??????# %## % ##???????## ### | | ##?? #??????????## ####### % #???????# | | ### ????###????# ##????##% ##????????# | | ### ??? ?????# #?????# #???###### | | ### ?? ???????# #?????## ##??## | | ## #????????# #??????# ##### | | ## #????????# ##??????# ## | | ## ##??????? ????????# | +----------------------------------------------------+ Best States ------------- Heat Dissipation 25 Energy Generation 10 Energy Capacity 250 Matter Stores 300 Matter Capacity 300 Sight Range 16 Terrain Scan Density 10 Armor Coverage 150 Resistance: KI 10 Evasion (%) 40 Recoil Reduction 2 Item Schematics ----------------- None Robot Schematics ------------------ None Fabricated ------------ Nothing Repaired ---------- Nothing Studied --------- None Alien Tech Used ----------------- None Achievements -------------- None Challenges ------------ None Game ------ Seed FieldthrustVoltaicLog Manual? 0 Play Time 00:19:54 Cumulative 536.2 hours Start 2025.11.13 @ 21:21:33 End 2025.11.13 @ 21:47:02 Sessions 1 Manual Loads 0 Difficulty Rogue Special Mode None Game No. 869 Rogue 714 Adventurer 148 Explorer 7 Win Type - Total 26 Types 20/1/4/1/0/0/0/0/0/0 Lore% 78 Gallery% 80 Achievement% 65 Wizard Run 0 Options --------- Layout 1 ASCII 0 Keyboard 0 Movement Numpad Keybinds 0 Fullscreen 2 Font 24/Smallcaps Map View 50x40 Zoom Use 0% Tactical HUD 1 Map Filters NONE Filters NONE Steam 1 RUN: ab97278d-a4e0-4065-8ef8-d2c78a8ea922